Cogmind - Beta 10.2 @@@ ROGUE MODE // 2021.04.11 @ 12:53:09 Player: ChromeKnight Result: Destroyed by Explosive Trap Performance ------------- Evolutions (0) 0 Regions Visited (2) 400 Robots Destroyed (22) 110 Value Destroyed (592) 592 Prototype IDs (0) 0 Alien Tech Used (0) 0 Bonus (0) 0 TOTAL SCORE: 1102 Bonus ------- None Cogmind --------- Core Integrity 0/250 Matter 295/300 Energy 100/100 System Corruption 0% Temperature Cool (0) Movement Core (300) Ox5 Location -10/Mines Parts ------- > --- POWER (1) -------- (None) > --- PROPULSION (2) --- (None) > --- UTILITY (2) ------ Improved Heat Sink Large Storage Unit > --- WEAPON (2) ------- (None) > --- INVENTORY (10) --- Hover Unit Hover Unit Hover Unit Hover Unit Heat Sink Medium Matter Pod (100) Explosive Trap Peak State ------------ > --- POWER ------------ Light Nuclear Core > --- PROPULSION ------- Aluminum Leg Aluminum Leg > --- UTILITY ---------- Improved Heat Sink Medium Storage Unit > --- WEAPON ----------- Particle Gun Light Assault Rifle > --- INVENTORY -------- Aluminum Leg Aluminum Leg Aluminum Leg Hover Unit Heat Sink Improved Heat Sink Medium Laser Small Laser [Rating: 13] Favorites ----------- Power Light Nuclear Core Engine Ion Engine Power Core Light Nuclear Core Propulsion Aluminum Leg Leg Aluminum Leg Utility Improved Heat Sink Device Improved Heat Sink Storage Large Storage Unit Weapon Particle Gun Energy Gun Particle Gun Ballistic Gun Light Assault Rifle Special Weapon Mining Laser Build | -11 -10 -10 ------- Run | Scr Mat Min Slots Evolved . | . . . Power . | . . . Propulsion . | . . . Utility . | . . . Weapon . | . . . Parts Attached 31 | 6 20 5 Power 3 | 1 2 . Engine 1 | 1 . . Core 2 | . 2 . Reactor . | . . . Propulsion 12 | 2 8 2 Treads . | . . . Leg 12 | 2 8 2 Wheel . | . . . Hover . | . . . Flight . | . . . Utility 6 | 1 4 1 Device 3 | . 2 1 Storage 3 | 1 2 . Processor . | . . . Hackware . | . . . Protection . | . . . Artifact . | . . . Weapon 10 | 2 6 2 Energy Gun 6 | . 6 . Energy Cannon . | . . . Ballistic Gun 2 | 2 . . Ballistic Cannon . | . . . Launcher . | . . . Special Weapon 2 | . . 2 Impact Weapon . | . . . Slashing Weapon . | . . . Piercing Weapon . | . . . Special Melee Weapon . | . . . Unidentified Prototypes . | . . . Parts Lost 10 | . 3 7 Power 1 | . . 1 Propulsion 2 | . . 2 Utility . | . . . Weapon 7 | . 3 4 Highest Loss Streak 5 | . 2 5 Average Slot Usage (%) 91 | . 97 85 Core 13 | . 13 14 Leg 27 | . 28 27 Device 13 | . 13 14 Storage 14 | . 14 14 Energy Gun 13 | . 20 6 Ballistic Gun 2 | . 6 . Special Weapon 4 | . . 8 Naked Turns . | . . . Heaviest Build 27 | 11 27 24 Greatest Support 20 | 20 20 20 Greatest Overweight (x) 5 | . 1 5 Average Overweight (x) . | . . 1 Largest Inventory Capacity 10 | 6 10 10 Average Capacity 9 | 5 8 10 Most Carried 10 | 1 8 10 Average Carried 6 | . 4 7 Final Capacity 10 | 6 10 10 Final Carried 7 | 1 7 7 Class Distribution -------------------- 85% | Scavenger-Mutant 14% | Mutant Dominant Class ---------------- Scavenger-Mutant | -10/Materials Scavenger-Mutant | -10/Mines Resources | -11 -10 -10 ----------- Run | Scr Mat Min Matter Collected 596 | 218 251 127 Remotely . | . . . Salvage Created 752 | . 692 60 Parts 45 | . 37 8 Haulers Intercepted 2 | . 2 . Recyclers Shooed . | . . . Parts Field Recycled . | . . . Retrieved Matter . | . . . Parts Self-Destructed . | . . . Prevented . | . . . Kills | -11 -10 -10 ------- Run | Scr Mat Min Combat Hostiles Destroyed 18 | . 14 4 Guns 17 | . 14 3 AOE 1 | . . 1 Classes Destroyed 5 | . 4 1 Tunneler 1 | . 1 . Hauler 2 | . 2 . Watcher 1 | . 1 . Swarmer 4 | . . 4 Grunt 14 | . 14 . Best Kill Streak 4 | . 4 3 Combat Bots Only 4 | . 4 3 Max Kills in Single Turn 1 | . 1 1 Gunslinging . | . . . Exploded 1 | . . 1 Melee . | . . . Uniques/NPCs Destroyed . | . . . Combat | -11 -10 -10 -------- Run | Scr Mat Min Damage Taken 1194 | . 681 513 Core 274 | . 144 130 Absorbed by Shields . | . . . Core Remaining (%) 100 | 100 . . Volleys Fired 81 | . 67 14 Largest 2 | . 2 2 Hottest 120 | . 105 120 Shots Fired 143 | . 126 17 Gun 138 | . 126 12 Cannon . | . . . Launcher . | . . . Special 5 | . . 5 Kinetic 39 | . 39 . Thermal 93 | . 87 6 Explosive . | . . . Electromagnetic 11 | . . 11 Robot Hit Streak 9 | . 9 8 Robot Miss Streak 5 | . 4 5 Penetration Max . | . . . Secondary Targets 5 | . 4 1 Max Gunslinging Chain 1 | . 1 1 Shots Hit Robots 101 | . 91 10 Core Hits 41 | . 37 4 Critical Hits . | . . . Critical Kills . | . . . Critical Parts Destroyed . | . . . Melee Attacks . | . . . Impact . | . . . Slashing . | . . . Piercing . | . . . Sneak Attacks . | . . . Combat Hostiles . | . . . Follow-up Attacks . | . . . Damage Inflicted 1244 | . 1109 135 Guns 1240 | . 1109 131 Cannons . | . . . Explosions . | . . . Melee . | . . . Ramming 4 | . . 4 Kinetic 177 | . 177 . Thermal 948 | . 932 16 Explosive . | . . . Electromagnetic 115 | . . 115 Impact . | . . . Slashing . | . . . Piercing . | . . . Highest Corruption . | . . . Average Corruption . | . . . Corruption Purged . | . . . Overload Shots . | . . . Overflow Damage . | . . . Projectiles . | . . . Explosions . | . . . Melee . | . . . Knockbacks . | . . . Impact . | . . . Kinetic . | . . . Secondary . | . . . Self-Inflicted Damage 2 | . . 2 Shots . | . . . Rammed 1 | . . 1 Targets Rammed 1 | . . 1 Kicked . | . . . Crushed . | . . . Highest Temperature 120 | . 120 9 Average Temperature 27 | . 28 6 Received Heat Transfer 450 | . 384 66 Siege Activations . | . . . Robots Corrupted . | . . . Combat Hostiles . | . . . Parts Fried . | . . . Impact Corruptions . | . . . Robots Melted . | . . . Combat Hostiles . | . . . Parts Melted 3 | . 3 . Heat Transferred 2203 | . 2166 37 Parts Sabotaged . | . . . Parts Stolen . | . . . Parts Stripped . | . . . Power Chain Reactions . | . . . Missiles Intercepted . | . . . Alert | -11 -10 -10 ------- Run | Scr Mat Min Peak Influence 317 | . 317 165 Initial 100 | . . 100 Average 131 | . 182 93 Maximum Alert Level 1 | . 1 . Low Security (%) 79 | 100 56 100 Level 1 20 | . 43 . Level 2 . | . . . Level 3 . | . . . Level 4 . | . . . Level 5 . | . . . High Security . | . . . Max Security . | . . . Squads Dispatched 3 | . 3 . Investigation 1 | . 1 . Extermination . | . . . Reinforcement 2 | . 2 . Assault . | . . . Garrison . | . . . Intercept . | . . . Construction Impeded . | . . . Haulers Reinforced . | . . . Stealth | -11 -10 -10 --------- Run | Scr Mat Min Distress Signals 1 | . 1 . Communications Jammed . | . . . Distress Signals . | . . . Times Spotted 29 | . 22 7 Peak Tracking Total 5 | . 5 3 Tactical Retreats 1 | . . 1 Traps | -11 -10 -10 ------- Run | Scr Mat Min Traps Triggered 1 | . 1 . Indirectly . | . . . Trap Hack Attempts . | . . . Triggered . | . . . Disarmed . | . . . Reprogrammed . | . . . Reused 2 | . . 2 Traps Extracted . | . . . Installed 2 | . . 2 Triggered 2 | . . 2 Machines | -11 -10 -10 ---------- Run | Scr Mat Min Machines Disabled 1 | . 1 . Max in Single Turn 1 | . 1 . Machines Sabotaged . | . . . Garrisons Compromised . | . . . Overloaded Fab Kills . | . . . Fab Network Shutdowns . | . . . Hacking | -11 -10 -10 --------- Run | Scr Mat Min Machines Accessed 2 | . 2 . Terminals 2 | . 2 . Fabricators . | . . . Repair Stations . | . . . Recycling Units . | . . . Scanalyzers . | . . . Garrison Access . | . . . Total Hacks 5 | . 5 . Successful 4 | . 4 . Failed 1 | . 1 . Catastrophic 1 | . 1 . Database Lockouts . | . . . Manual 4 | . 4 . Terminals 5 | . 5 . Fabricators . | . . . Repair Stations . | . . . Recycling Units . | . . . Scanalyzers . | . . . Garrison Access . | . . . Terminal Hacks 4 | . 4 . Record 1 | . 1 . Robot Analysis 3 | . 3 . Fabricator Hacks . | . . . Repair Station Hacks . | . . . Recycling Unit Hacks . | . . . Scanalyzer . | . . . Garrison Access Hacks . | . . . Unauthorized Hacks . | . . . Terminals . | . . . Fabricators . | . . . Repair Stations . | . . . Recycling Units . | . . . Scanalyzers . | . . . Garrison Access . | . . . Data Cores Recovered . | . . . Used . | . . . Hacking Detections 1 | . 1 . Full Trace Events . | . . . Feedback Events . | . . . Feedback Blocked . | . . . Robot Schematics Acquired . | . . . Robots Built . | . . . Matter . | . . . Time . | . . . Total Robot Build Rating . | . . . Part Schematics Acquired . | . . . Parts Built . | . . . Matter . | . . . Time . | . . . Total Part Build Rating . | . . . Parts Repaired . | . . . Time . | . . . Parts Recycled . | . . . Recycled Matter . | . . . Retrieved Matter . | . . . Retrieved Components . | . . . Parts Scanalyzed . | . . . Part Schematics Acquired . | . . . Parts Damaged . | . . . Bothacking | -11 -10 -10 ------------ Run | Scr Mat Min Used RIF Installer . | . . . Robots Hacked . | . . . Non-combat . | . . . Combat . | . . . Robot Hacks Applied . | . . . Relay Couplers Released . | . . . Robots Rewired . | . . . Allies Hacked . | . . . Hacks Repelled . | . . . Allies | -11 -10 -10 -------- Run | Scr Mat Min Total Allies . | . . . Largest Group . | . . . Highest-Rated Group . | . . . Highest-Rated Ally . | . . . Total Orders . | . . . Ally Attacks . | . . . Total Damage . | . . . Kills . | . . . Allies Corrupted . | . . . Allies Melted . | . . . Intel | -11 -10 -10 ------- Run | Scr Mat Min Robot Analysis Total 3 | . 3 . Derelict Logs Recovered 1 | . . 1 Drone Launches . | . . . Drone Recoveries . | . . . Exploration | -11 -10 -10 ------------- Run | Scr Mat Min Turns Passed 1368 | 49 634 685 Spaces Moved 749 | 37 295 417 Core 8 | 7 . 1 Treads . | . . . Legs 741 | 30 295 416 Wheels . | . . . Hover . | . . . Flight . | . . . Fastest Speed 50 | 50 120 150 Average Speed 141 | 106 134 150 Slowest Speed 300 | 120 150 300 Overloaded Moves . | . . . Propulsion Burnouts . | . . . Robots Hopped . | . . . Cave-ins Triggered . | . . . Exploration Rate (%) 44 | 4 58 71 Regions Visited 2 Branch Regions 1 Pre-discovered Areas . | . . . Known Exits Taken . | . . . Unknown Exits Taken 2 | 1 1 . Scrap Searched 3 | . . 3 Spaces Dug . | . . . Terrain Destroyed 2 | . . 2 Melee . | . . . Projectile 2 | . . 2 AOE . | . . . Terrain Rammed . | . . . Walls Destroyed . | . . . Machines Disabled . | . . . Actions | -11 -10 -10 --------- Run | Scr Mat Min Total 907 | 43 413 451 Wait 17 | . 15 2 Move 747 | 36 294 417 Hop . | . . . Pick Up 11 | 1 5 5 Fast Attach 12 | 6 4 2 Attach 2 | . 2 . Detach . | . . . Swap 17 | . 14 3 Drop 17 | . 12 5 Fire 81 | . 67 14 Melee . | . . . Ram . | . . . Kick 1 | . . 1 Crush . | . . . Escape Stasis . | . . . Rewire . | . . . Trap 2 | . . 2 Miscellaneous . | . . . Route ------- -11/Scrapyard -10/Materials (discovered 2 exits: [*Mat] / [*Min]) -10/Mines (discovered 1 exit: [*Mat]) History --------- Turn | Location | Event 8 | -11/Scrapyard | Discovered new exit (range 15) 50 | -11/Scrapyard | Entered Materials 392 | -10/Materials | Discovered new exit (range 3) 472 | -10/Materials | Core integrity fell below 50% 481 | -10/Materials | Build established: Scavenger-Mutant 626 | -10/Materials | Discovered new exit (range 12) 684 | -10/Materials | Entered Mines 695 | -10/Mines | Met a Derelict bent on vengeance 847 | -10/Mines | Discovered new exit (range 10) 1305 | -10/Mines | Found a hidden stash of uninstalled traps 1353 | -10/Mines | Core integrity fell below 20% 1369 | -10/Mines | Destroyed by Explosive Trap Last Messages --------------- 01305_ A stash of uninstalled traps is collected here! 01308_ Acquired Explosive Trap. 01315_ Dropped Aluminum Leg. 01317_ Acquired Explosive Trap. 01321_ Dropped Imp. Heat Sink. 01346_ Welding Torch destroyed. 01355_ Mining Laser destroyed. 01356_ Aluminum Leg destroyed. 01361_ Dropped Explosive Trap. 01362_ Installed Explosive Trap. 01364_ S-10 Pest triggered Explosive Trap. 01364_ An explosion rips through the floor. 01364_ S-10 Pest destroyed. 01364_ Lgt. Nuclear Core destroyed. 01364_ Dropped Explosive Trap. 01365_ Installed Explosive Trap. 01367_ Aluminum Leg destroyed. 01369_ S-10 Pest triggered Explosive Trap. 01369_ An explosion rips through the floor. 01369_ S-10 Pest destroyed. Map ----- +----------------------------------------------------+ | | | | | | | | | | | | | | | | | | | | | | | | | ?????????????????????????????????????????????????? | | ?????????????????????????????????????????????????? | | ?????????????????????????????????????????????????? | | ?????????????????????????????????????????????????? | | ?????????????####????????????????????????????????? | | ????????????## #???????????##??????? ??????????? | | ???????????## #??????????? ####?? ??????????? | | ???????????# #??????????? ### ??????????? | | ??????????## #######????? ???????????? | | ??????????# = #????? ?????????????? | | ??????????# != #????# #???????????????? | | ??????????# ## ##### #???????????????? | | ??????????#### ### #????????????????? | | ?????????????#####?# @ #?????????????????? | | ?????????????????### ;# %= #?????????????????? | | ????????????????## ## s #?????????????????? | | ????????????????# # #?????????????????? | | ????????????????## ##?????????????????? | | ?????????????????## ##??????????????????? | | ??????????????????## ##???????????????????? | | ???????????????????##### ##???????????????????? | | ???????????????????????## ###?????????????????? | | ????????????????????????# ##???#####????????? | | ????????????????????????## ##??# ##???????? | | ?????????????????????????# """ ##?## ##??????? | | ?????????????????????????# """ #### #??????? | | ????????????????????###### """ ## #??????? | | ???????????????????## ## ##??????? | | ??????????????????## #???????? | | ??????????????????# ## ### ##???????? | | ?????????????????## ### ### ##?#####????????? | | ?????????????????# #?## ##?####???????????????? | | ?????????????????# ##?####?????????????????????? | | ?????????????????# ######?????????????????????? | | ?????????????????# #?????####????????????? | | ?????????????????## #????## ##???????????? | | ??????????????????## #####|#??### #???????????? | | ???????????????????# #???# #?## #???????????? | +----------------------------------------------------+ Best States ------------- Heat Dissipation 39 Energy Generation 14 Energy Capacity 250 Matter Stores 300 Matter Capacity 300 Sight Range 16 Terrain Scan Density 10 Evasion (%) 40 Item Schematics ----------------- None Robot Schematics ------------------ None Fabricated ------------ Nothing Alien Tech Used ----------------- None Achievements -------------- None Challenges ------------ None Game ------ Seed NullThermalThruster Manual? 0 Play Time 00:09:13 Cumulative 135.8 hours Start 2021.04.11 @ 12:46:22 End 2021.04.11 @ 12:53:09 Sessions 1 Manual Loads 0 Difficulty Rogue Special Mode None Game No. 308 Rogue 155 Adventurer 148 Explorer 5 Win Type - Total 3 Types 3/0/0/0/0/0/0/0/0 Lore% 66 Gallery% 74 Achievement% 57 Wizard Run 0 Options --------- ASCII 0 Keyboard 0 Movement Numpad Keybinds 0 Fullscreen 1 Font 18/CogNarrow Map View 76x50 Tactical HUD 1 Map Filters NONE Filters NONE Steam 1 RUN: aa2ce20a-6826-44da-ab1a-f51c01518acf